fUSD/lending_fUSD_20240224
["ID","MTS","AMOUNT","RATE_DAILY","PERIOD"]
[315026261,1708733499027,-500.0,0.000418,2]
[315026262,1708733499038,-500.0,0.000418,2]
[315026263,1708733499048,-500.0,0.000418,2]
[315026264,1708733499058,-500.0,0.000418,2]
[315026265,1708733499069,-500.0,0.000418,2]
[315026266,1708733499079,-500.0,0.000418,2]
[315026267,1708733499088,-500.0,0.000418,2]
[315026268,1708733499098,-500.0,0.000418,2]
[315026269,1708733499107,-500.0,0.000418,2]
[315026270,1708733499118,-235.55621466,0.000418,2]
[315026271,1708733499127,-500.0,0.000418,2]
[315026272,1708733499137,-500.0,0.000418,2]
[315026273,1708733499146,-500.0,0.000418,2]
[315026274,1708733499155,-500.0,0.000418,2]
[315026275,1708733499165,-500.0,0.000418,2]
[315026276,1708733499174,-500.0,0.000418,2]
[315026277,1708733499184,-500.0,0.000418,2]
[315026278,1708733499193,-500.0,0.000418,2]
[315026279,1708733499202,-500.0,0.000418,2]
[315026280,1708733499212,-500.0,0.000418,2]
[315026281,1708733499225,-500.0,0.000418,2]
[315026282,1708733499235,-500.0,0.000418,2]
[315026283,1708733499244,-500.0,0.000418,2]
[315026284,1708733499253,-500.0,0.000418,2]
[315026285,1708733499263,-500.0,0.000418,2]
[315026286,1708733499274,-500.0,0.000418,2]
[315026287,1708733499283,-500.0,0.000418,2]
[315026288,1708733499292,-500.0,0.000418,2]
[315026289,1708733499303,-500.0,0.000418,2]
[315026290,1708733499312,-500.0,0.000418,2]
[315026291,1708733499321,-500.0,0.000418,2]
[315026292,1708733499331,-500.0,0.000418,2]
[315026293,1708733499340,-500.0,0.000418,2]
[315026294,1708733499349,-500.0,0.000418,2]
[315026295,1708733499359,-500.0,0.000418,2]
[315026296,1708733499368,-500.0,0.000418,2]
[315026297,1708733499377,-500.0,0.000418,2]
[315026298,1708733499387,-500.0,0.000418,2]
[315026299,1708733499396,-500.0,0.000418,2]
[315026300,1708733499405,-500.0,0.000418,2]
[315026301,1708733499414,-500.0,0.000418,2]
[315026302,1708733499424,-500.0,0.000418,2]
[315026303,1708733499433,-157.60361213,0.000418,2]
[315026304,1708733499442,-1792.0,0.00041812,20]
[315026305,1708733499451,-354.0,0.00041812,20]
[315026306,1708733499461,-291.0,0.00041812,20]
[315026307,1708733499471,-4754.94150745,0.00041817,2]
[315026308,1708733499480,-22215.0,0.0004182,20]
[315026309,1708733499490,-82640.0,0.000419,30]
[315026310,1708733499499,-154.20563152,0.000419,30]
[315026311,1708733499508,-1436.46376,0.0004194,18]
[315026312,1708733499517,-1000.0,0.0004196,18]
[315026313,1708733499527,-5017.79,0.00041967,15]
[315026314,1708733499536,-5017.79,0.00041967,15]
[315026315,1708733499546,-13222.7457593,0.0004198,2]
[315026316,1708733499555,-1000.0,0.0004198,18]
[315026317,1708733499564,-219.9,0.0004199,120]
[315026318,1708733499574,-157.51738774,0.00041992,30]
[315026319,1708733499583,-316.4555568,0.00042,2]
[315026320,1708733499592,-8734.22081641,0.00042,2]
[315026321,1708733499602,-2000.0,0.00042,30]
[315026322,1708733499611,-1351.42348424,0.00042,30]
[315026323,1708733499621,-9720.80964305,0.00042,7]
[315026324,1708733499630,-1439.669,0.00042,59]
[315026325,1708733499639,-100033.73208651,0.00042,5]
[315026326,1708733499649,-257.0,0.00042,30]
[315026327,1708733499658,-41108.96613434,0.00042,2]
[315026328,1708733499667,-1014.49619896,0.00042,30]
[315026329,1708733499677,-3416.47,0.00042,7]
[315026330,1708733499687,-900.0,0.00042,43]
[315026331,1708733499696,-160.0,0.00042,77]
[315026332,1708733499705,-350.0,0.00042,32]
[315026333,1708733499715,-200.0,0.00042,2]
[315026334,1708733499725,-1000.0,0.00042,18]
[315026335,1708733499735,-1298.83422377,0.0004201,2]
[315026336,1708733499744,-3569.46,0.00042092,15]
[315026337,1708733499753,-666.0,0.000421,4]
[315026338,1708733499763,-200.0,0.000421,4]
[315026339,1708733499772,-1000.0,0.000421,15]
[315026340,1708733499781,-200.0,0.000421,17]
[315026341,1708733499791,-151.0,0.000421,13]
[315026342,1708733499801,-154.20563152,0.0004218,30]
[315026343,1708733499810,-704.295,0.00042191,8]
[315026344,1708733499820,-1000.0,0.00042205,2]
[315026345,1708733499829,-2695.0,0.00042219,2]
[315026346,1708733499839,-1231.0,0.00042219,2]
[315026347,1708733499848,-168.788,0.00042219,2]
[315026348,1708733499858,-859.0,0.00042219,2]
[315026349,1708733499867,-430.0,0.00042219,2]
[315026350,1708733499877,-276.0,0.00042219,2]
[315026351,1708733499886,-150.0,0.00042219,2]
[315026352,1708733499896,-2876.0,0.00042219,2]
[315026353,1708733499905,-338.0,0.00042219,2]
[315026354,1708733499915,-1137.0,0.00042219,2]
[315026355,1708733499925,-321.0,0.00042219,2]
[315026356,1708733499935,-453.0,0.00042219,2]
[315026357,1708733499944,-1792.0,0.00042222,20]
[315026358,1708733499954,-354.0,0.00042222,20]
[315026359,1708733499963,-291.0,0.00042222,20]
[315026360,1708733499974,-22215.0,0.0004223,20]
[315026361,1708733499983,-2293.0,0.00042232,2]
[315026362,1708733499992,-8171.0,0.00042232,2]
[315026363,1708733500001,-2930.887,0.00042232,2]
[315026364,1708733500011,-5642.0,0.00042232,2]
[315026365,1708733500021,-33496.319,0.00042232,2]
[315026366,1708733500030,-7424.0,0.00042232,2]
[315026367,1708733500040,-3754.611,0.00042232,2]
[315026368,1708733500050,-19893.0,0.00042232,2]
[315026369,1708733500059,-1323.17,0.00042236,2]
[315026370,1708733500069,-2124.36940037,0.000423,3]
[315026371,1708733500078,-168.75267509,0.00042334,30]
[315026372,1708733500087,-150.0,0.00042394,2]
[315026373,1708733500097,-3868.85,0.000424,7]
[315026374,1708733500107,-2700.05,0.000424,7]
[315026375,1708733500117,-1000.0,0.000424,15]
[315026376,1708733500129,-1000.0,0.000424,8]
[315026377,1708733500138,-154.20563152,0.0004246,30]
[315026378,1708733500149,-1000.0,0.00042465,40]
[315026379,1708733500158,-200.0,0.000425,17]
[315026380,1708733500169,-2000.0,0.000425,2]
[315026381,1708733500179,-154.20563152,0.00042512,30]
[315026382,1708733500188,-200.0,0.000426,18]
[315026383,1708733500198,-151.0,0.000426,14]
[315026384,1708733500208,-2000.0,0.000428,30]
[315026385,1708733500218,-156.57354394,0.00042867,30]
[315026386,1708733500227,-5396.95996106,0.00042885,5]
[315026387,1708733500237,-918.15914206,0.00042888,32]
[315026388,1708733500248,-554.4888475,0.0004296,60]
[315026389,1708733500257,-6970.62007807,0.00043,30]
[315026390,1708733500266,-257.0,0.00043,30]
[315026391,1708733500275,-568.3174543,0.00043,120]
[315026392,1708733500286,-5000.0,0.00043,120]
[315026393,1708733500296,-6655.0,0.00043,30]
[315026394,1708733500305,-6655.0,0.00043,60]
[315026395,1708733500314,-900.0,0.00043,44]
[315026396,1708733500324,-350.0,0.00043,33]
[315026397,1708733500335,-939.06,0.00043013,10]
[315026398,1708733500345,-10961.23,0.00043014,2]
[315026399,1708733500354,-1983.69,0.0004308,2]
[315026400,1708733500365,-200.0,0.000431,5]
[315026401,1708733500374,-200.0,0.000431,19]
[315026402,1708733500385,-151.0,0.000431,14]
[315026403,1708733500394,-160.49481862,0.00043107,30]
[315026404,1708733500403,-313.32,0.0004314,2]
[315026405,1708733500413,-1000.0,0.000432,10]
[315026406,1708733500423,-1000.0,0.000432,10]
[315026407,1708733500432,-150.0,0.00043259,2]
[315026408,1708733500442,-2000.0,0.000433,2]
[315026409,1708733500451,-154.20563152,0.00043403,30]
[315026410,1708733500461,-154.20563152,0.00043436,30]
[315026411,1708733500471,-157.51738774,0.00043484,30]
[315026412,1708733500480,-157.51738774,0.00043491,30]
[315026413,1708733500489,-200.0,0.000435,18]
[315026414,1708733500499,-204.0,0.00043595,31]
[315026415,1708733500509,-2000.0,0.000436,30]
[315026416,1708733500518,-151.0,0.000436,15]
[315026417,1708733500527,-1000.0,0.00043677,2]
[315026418,1708733500536,-3868.85,0.000437,7]
[315026419,1708733500546,-2700.05,0.000437,7]
[315026420,1708733500557,-9222.57222949,0.0004375,30]
[315026421,1708733500566,-192749.29849149,0.00043751,2]
[315026422,1708733500575,-2000.0,0.000438,2]
[315026423,1708733500584,-500.0,0.000438,2]
[315026424,1708733500593,-300.0,0.000438,2]
[315026425,1708733500602,-500.0,0.000438,2]
[315026426,1708733500612,-200.0,0.000438,2]
[315026427,1708733500701,-2515.0,0.000438,120]
[315026428,1708733500711,-2000.0,0.000438,2]
[315026429,1708733500722,-872.0,0.000438,2]
[315026430,1708733500731,-650.0,0.000438,2]
[315026431,1708733500740,-4177.0,0.000438,30]
[315026432,1708733500750,-160.49481862,0.00043806,30]
[315026433,1708733500760,-456.76160878,0.00043809,120]
[315026434,1708733500769,-1000.0,0.00043835,50]
[315026435,1708733500778,-666.0,0.00043835,2]
[315026436,1708733500788,-1007.45479369,0.00043835,30]
[315026437,1708733500797,-1092.91,0.00043835,2]
[315026438,1708733500806,-1173.825,0.00043835,12]
[315026439,1708733500816,-161.72,0.00043836,2]
[315026440,1708733500825,-9870.53949526,0.00044,10]
[315026441,1708733500834,-36101.79039596,0.00044,2]
[315026442,1708733500844,-12625.0,0.00044,2]
[315026443,1708733500853,-4650.28118926,0.00044,4]
[315026444,1708733500862,-962.52517099,0.00044,10]
[315026445,1708733500871,-20170.84402629,0.00044,21]
[315026446,1708733500880,-20311.51639334,0.00044,21]
[315026447,1708733500889,-14865.51711621,0.00044,21]
[315026448,1708733500898,-20311.52962482,0.00044,21]
[315026449,1708733500908,-20170.78491004,0.00044,21]
[315026450,1708733500918,-1314.43488651,0.00044,120]
[315026451,1708733500931,-257.0,0.00044,30]
[315026452,1708733500941,-1822.21937132,0.00044,15]
[315026453,1708733500950,-10450.60128823,0.00044,8]
[315026454,1708733500959,-280.90672602,0.00044,32]
[315026455,1708733500970,-160.0,0.00044,89]
[315026456,1708733500979,-350.0,0.00044,34]
[315026457,1708733500988,-861.1,0.00044,7]
[315026458,1708733500998,-4187.0,0.0004402,2]
[315026459,1708733501006,-4187.0,0.0004402,2]
[315026460,1708733501015,-4187.0,0.0004402,2]
[315026461,1708733501024,-4187.0,0.0004402,2]
[315026462,1708733501034,-199.0,0.000441,6]
[315026463,1708733501043,-200.0,0.000441,2]
[315026464,1708733501053,-151.0,0.000441,15]
[315026465,1708733501063,-150.0,0.00044124,2]
[315026466,1708733501072,-156.3052614,0.00044205,30]
[315026467,1708733501081,-260736.929335,0.00044383,7]
[315026468,1708733501090,-2000.0,0.000444,30]
[315026469,1708733501099,-1000.0,0.000444,13]
[315026470,1708733501109,-2872.91581316,0.0004443,16]
[315026471,1708733501118,-5396.95996106,0.00044464,5]
[315026472,1708733501127,-1323.17,0.000445,2]
[315026473,1708733501137,-200.0,0.000445,19]
[315026474,1708733501145,-313.32,0.0004452,2]
[315026475,1708733501154,-400.0,0.0004458,2]
[315026476,1708733501164,-500.0,0.0004458,2]
[315026477,1708733501173,-500.0,0.0004458,2]
[315026478,1708733501183,-500.0,0.0004458,2]
[315026479,1708733501192,-500.0,0.0004458,2]
[315026480,1708733501201,-500.0,0.0004458,2]
[315026481,1708733501210,-500.0,0.0004458,2]
[315026482,1708733501222,-500.0,0.0004458,2]
[315026483,1708733501232,-500.0,0.0004458,2]
[315026484,1708733501243,-500.0,0.0004458,2]
[315026485,1708733501252,-500.0,0.0004458,2]
[315026486,1708733501262,-500.0,0.0004458,2]
[315026487,1708733501270,-500.0,0.0004458,2]
[315026488,1708733501281,-151.0,0.000446,16]
[315026489,1708733501291,-1092.91,0.00044657,2]
[315026490,1708733501300,-1408.59,0.00044657,14]
[315026491,1708733501309,-154.20563152,0.00044733,30]
[315026492,1708733501320,-4754.94150745,0.00044897,2]
[315026493,1708733501329,-90000.0,0.000449,30]
[315026494,1708733501338,-77242.29921241,0.000449,41]
[315026495,1708733501347,-688.88,0.00044932,2]
[315026496,1708733501356,-5149.41584515,0.0004498,2]
[315026497,1708733501366,-5000.0,0.00044986,4]
[315026498,1708733501375,-150.0,0.00044989,2]
[315026499,1708733501385,-4754.94150745,0.00044997,2]
[315026500,1708733501394,-8091.51022852,0.00045,2]
[315026501,1708733501404,-150.999998,0.00045,120]
[315026502,1708733501413,-3499.99999902,0.00045,60]
[315026503,1708733501423,-3868.85,0.00045,7]
[315026504,1708733501433,-150217.52308609,0.00045,2]
[315026505,1708733501443,-2700.05,0.00045,7]
[315026506,1708733501453,-238.34411512,0.00045,30]
[315026507,1708733501462,-421180.5153254,0.00045,35]
[315026508,1708733501771,-236743.02925943,0.00045,35]
[315026509,1708733501781,-52400.30962748,0.00045,2]
[315026510,1708733501791,-257.24053909,0.00045,2]
[315026511,1708733501800,-3865.38680603,0.00045,2]
[315026512,1708733501810,-125749.15449246,0.00045,14]
[315026513,1708733501819,-2159.29878456,0.00045,2]
[315026514,1708733501829,-7159.57830346,0.00045,30]
[315026515,1708733501838,-8440.05246005,0.00045,7]
[315026516,1708733501847,-3916.02446434,0.00045,10]
[315026517,1708733501857,-261.04245091,0.00045,7]
[315026518,1708733501866,-345.0,0.00045,7]
[315026519,1708733501875,-6239.75687344,0.00045,8]
[315026520,1708733501884,-1705.744601,0.00045,17]
[315026521,1708733501894,-200.0,0.00045,120]
[315026522,1708733501903,-350.0,0.00045,45]
[315026523,1708733501913,-154.20563152,0.00045033,30]
[315026524,1708733501923,-151.0,0.000451,16]
[315026525,1708733501933,-762.1716,0.0004514,30]
[315026526,1708733501943,-1000.0,0.00045149,2]
[315026527,1708733501953,-152.6064863,0.00045187,30]
[315026528,1708733501962,-2000.0,0.000452,30]
[315026529,1708733501972,-2000.0,0.000452,2]
[315026530,1708733501982,-1000.0,0.00045205,60]
[315026531,1708733501991,-2500.0,0.00045205,30]
[315026532,1708733502000,-521.01,0.00045219,2]
[315026533,1708733502010,-1231.0,0.00045219,2]
[315026534,1708733502019,-161.92,0.00045232,2]
[315026535,1708733502028,-204.0,0.00045417,34]
[315026536,1708733502037,-153.54957341,0.00045467,32]
[315026537,1708733502046,-1092.91,0.00045479,2]
[315026538,1708733502055,-1643.355,0.00045479,16]
[315026539,1708733502065,-200.0,0.000455,20]
[315026540,1708733502074,-151.0,0.000456,17]
[315026541,1708733502083,-157.51738774,0.00045641,30]
[315026542,1708733502093,-154.20563152,0.00045642,30]
[315026543,1708733502102,-177000.0,0.000457,22]
[315026544,1708733502111,-150.611562,0.00045718,30]
[315026545,1708733502121,-3569.46,0.00045828,15]
[315026546,1708733502130,-154.20563152,0.00045832,30]
[315026547,1708733502139,-156.57354396,0.00045854,30]
[315026548,1708733502149,-150.0,0.00045854,2]
[315026549,1708733502158,-313.32,0.000459,2]
[315026550,1708733502168,-1983.69,0.0004595,2]
[315026551,1708733502178,-2000.0,0.00046,2]
[315026552,1708733502187,-820.83,0.00046,120]
[315026553,1708733502197,-207876.2957624,0.00046,2]
[315026554,1708733502206,-24000.0,0.00046,120]
[315026555,1708733502217,-1000.0,0.00046,30]
[315026556,1708733502230,-810.0,0.00046,2]
[315026557,1708733502240,-94159.11697678,0.00046,15]
[315026558,1708733502250,-4607.02617292,0.00046,120]
[315026559,1708733502259,-151.0,0.00046,14]
[315026560,1708733502271,-278.87872,0.00046,14]
[315026561,1708733502280,-350.0,0.00046,46]
[315026562,1708733502290,-280.0,0.00046,101]
[315026563,1708733502300,-5396.95996106,0.00046043,5]
[315026564,1708733502309,-150.611562,0.00046078,30]
[315026565,1708733502320,-150.611562,0.00046079,30]
[315026566,1708733502330,-24000.0,0.0004608,120]
[315026567,1708733502341,-151.0,0.000461,17]
[315026568,1708733502351,-150.61156206,0.0004611,30]
[315026569,1708733502360,-216.0,0.00046122,28]
[315026570,1708733502371,-154.20563152,0.00046122,30]
[315026571,1708733502380,-24000.0,0.0004616,120]
[315026572,1708733502390,-200.0,0.000462,2]
[315026573,1708733502399,-24000.0,0.0004624,120]
[315026574,1708733502409,-1092.91,0.00046301,2]
[315026575,1708733502418,-1878.12,0.00046301,18]
[315026576,1708733502427,-7170.62,0.0004632,120]
[315026577,1708733502436,-155.76031539,0.00046328,30]
[315026578,1708733502446,-153.54957341,0.00046467,37]
[315026579,1708733502455,-155.57626885,0.0004648,30]
[315026580,1708733502465,-430.09338655,0.00046496,120]
[315026581,1708733502475,-200.0,0.000465,21]
[315026582,1708733502484,-157.51738782,0.00046555,30]
[315026583,1708733502494,-1000.0,0.00046575,70]
[315026584,1708733502504,-5000.0,0.00046575,30]
[315026585,1708733502513,-1000.0,0.00046575,30]
[315026586,1708733502523,-500.0,0.00046575,2]
[315026587,1708733502535,-500.0,0.00046575,2]
[315026588,1708733502545,-500.0,0.00046575,2]
[315026589,1708733502556,-500.0,0.00046575,2]
[315026590,1708733502567,-649.26710495,0.00046575,2]
[315026591,1708733502577,-151.0,0.000466,17]
[315026592,1708733502587,-2971.0,0.000467,115]
[315026593,1708733502596,-150.0,0.0004672,2]
[315026594,1708733502607,-1323.17,0.00046764,2]
[315026595,1708733502618,-157.022408,0.00046798,47]
[315026596,1708733502629,-5000.0,0.00046849,33]
[315026597,1708733502644,-1000.0,0.00046849,33]
[315026598,1708733502654,-827.91,0.00046849,2]
[315026599,1708733502664,-827.91,0.00046849,2]
[315026600,1708733502673,-827.91,0.00046849,2]
[315026601,1708733502683,-827.91,0.00046849,2]
[315026602,1708733502693,-827.91,0.00046849,2]
[315026603,1708733502702,-827.91,0.00046849,2]
[315026604,1708733502711,-827.91,0.00046849,2]
[315026605,1708733502721,-827.91,0.00046849,2]
[315026606,1708733502731,-827.91,0.00046849,2]
[315026607,1708733502741,-827.91,0.00046849,2]
[315026608,1708733502751,-827.91,0.00046849,2]
[315026609,1708733502762,-827.91,0.00046849,2]
[315026610,1708733502771,-827.91,0.00046849,2]
[315026611,1708733502781,-827.91,0.00046849,2]
[315026612,1708733502791,-827.91,0.00046849,2]
[315026613,1708733502800,-827.91,0.00046849,2]
[315026614,1708733502810,-827.91,0.00046849,2]
[315026615,1708733502820,-827.91,0.00046849,2]
[315026616,1708733502829,-827.91,0.00046849,2]
[315026617,1708733502839,-827.91,0.00046849,2]
[315026618,1708733502849,-827.91,0.00046849,2]
[315026619,1708733502858,-827.91,0.00046849,2]
[315026620,1708733502868,-827.91,0.00046849,2]
[315026621,1708733502878,-828.00965725,0.00046849,2]
[315026622,1708733502888,-2937.98,0.00046849,120]
[315026623,1708733502897,-955.24,0.00046849,120]
[315026624,1708733502907,-500.0,0.0004687,90]
[315026625,1708733502917,-7000.0,0.00046933,2]
[315026626,1708733502927,-4754.94150745,0.00046997,2]
[315026627,1708733502937,-169.57722884,0.00047,4]
[315026628,1708733502947,-386978.61285184,0.00047,60]
[315026629,1708733502956,-130184.69370785,0.00047,30]
[315026630,1708733502967,-22045.99371906,0.00047,3]
[315026631,1708733502976,-2000.0,0.00047,40]
[315026632,1708733502986,-350.0,0.00047,47]
[315026633,1708733502995,-151.0,0.000471,18]
[315026634,1708733503005,-216.0,0.00047103,28]
[315026635,1708733503015,-500.0,0.00047122,30]
[315026636,1708733503025,-5000.0,0.00047123,36]
[315026637,1708733503035,-777.48099121,0.00047123,36]
[315026638,1708733503044,-1092.91,0.00047123,2]
[315026639,1708733503053,-2112.885,0.00047123,20]
[315026640,1708733503063,-157.022408,0.00047198,47]
[315026641,1708733503073,-204.0,0.0004724,37]
[315026642,1708733503086,-666.0,0.0004726,2]
[315026643,1708733503095,-154.98329938,0.00047264,30]
[315026644,1708733503105,-335.68,0.0004728,2]
[315026645,1708733503115,-150.0,0.00047342,30]
[315026646,1708733503126,-150.0,0.00047342,30]
[315026647,1708733503136,-150.0,0.00047342,30]
[315026648,1708733503147,-150.0,0.00047342,30]
[315026649,1708733503157,-150.0,0.00047342,30]
[315026650,1708733503167,-213.36830761,0.00047342,30]
[315026651,1708733503177,-150.0,0.00047342,30]
[315026652,1708733503186,-5000.0,0.00047397,39]
[315026653,1708733503197,-150.0,0.000474,30]
[315026654,1708733503206,-150.0,0.00047457,30]
[315026655,1708733503218,-153.54957341,0.00047467,41]
[315026656,1708733503229,-161.72,0.00047489,2]
[315026657,1708733503239,-9509.8830149,0.00047497,2]
[315026658,1708733503250,-157.022408,0.00047498,51]
[315026659,1708733503260,-200.0,0.000475,22]
[315026660,1708733503271,-6312.3064606,0.000475,4]
[315026661,1708733503287,-262127.94904129,0.000475,4]
[315026662,1708733503475,-702.67,0.00028082,2]
[315026663,1708733503485,-500.0,0.00028904,2]
[315026664,1708733503495,-4400.194881,0.000475,4]
[315026665,1708733503507,-827159.54961711,0.000475,4]
[315026666,1708733503517,-151.0,0.000475,14]
[315026667,1708733503527,-226.142149,0.000475,14]
[315026668,1708733503537,-151.0,0.000475,14]
[315026669,1708733503546,-151.0,0.000475,14]
[315026670,1708733503555,-151.0,0.000475,14]
[315026671,1708733503565,-151.0,0.000475,14]
[315026672,1708733503575,-150.0,0.00047511,30]
[315026673,1708733503584,-150.0,0.00047515,30]
[315026674,1708733503593,-150.0,0.00047573,30]
[315026675,1708733503603,-2872.91581316,0.00047582,19]
[315026676,1708733503613,-150.0,0.00047585,2]
[315026677,1708733503623,-5107.5566344,0.000476,2]
[315026678,1708733503633,-23343.13843863,0.000476,120]
[315026679,1708733503643,-151.0,0.000476,18]
[315026680,1708733503653,-268.56840225,0.00047616,30]
[315026681,1708733503663,-5396.95996106,0.00047622,5]
[315026682,1708733503673,-150.0,0.00047631,30]
[315026683,1708733503683,-500.0,0.0004767,30]
[315026684,1708733503693,-5000.0,0.00047671,42]
[315026685,1708733503702,-150.0,0.00047681,30]
[315026686,1708733503712,-150.0,0.00047689,30]
[315026687,1708733503724,-18093.24302694,0.000477,60]
[315026688,1708733503734,-158.44336474,0.00047727,30]
[315026689,1708733503743,-150.0,0.00047746,30]
[315026690,1708733503753,-157.022408,0.00047798,51]
[315026691,1708733503763,-29929.76091045,0.000478,7]
[315026692,1708733503773,-150.0,0.00047804,30]
[315026693,1708733503782,-150.0,0.0004782,30]
[315026694,1708733503792,-163.70167317,0.00047848,30]
[315026695,1708733503802,-150.0,0.00047851,30]
[315026696,1708733503812,-150.0,0.00047862,30]
[315026697,1708733503821,-4754.94150745,0.00047897,2]
[315026698,1708733503832,-36863.98261008,0.000479,2]
[315026699,1708733503842,-2000.0,0.000479,2]
[315026700,1708733503852,-150.0,0.0004792,30]
[315026701,1708733503862,-1000.0,0.00047945,80]
[315026702,1708733503872,-2784.948225,0.00047945,45]
[315026703,1708733503882,-2500.0,0.00047945,30]
[315026704,1708733503892,-1092.91,0.00047945,2]
[315026705,1708733503910,-2347.65,0.00047945,22]
[315026706,1708733503925,-150.0,0.00047978,30]
[315026707,1708733503936,-154.20563158,0.00047992,30]
[315026708,1708733503947,-4754.94150745,0.00047997,2]
[315026709,1708733503957,-8500.0,0.00048,10]
[315026710,1708733503968,-1095898.74381472,0.00048,10]
[315026711,1708733503990,-500.0,0.00028356,2]
[315026712,1708733504001,-6304.34043264,0.00048,10]
[315026713,1708733504014,-8818.22686115,0.00048,10]
[315026714,1708733504030,-40245.24932897,0.00048,10]
[315026715,1708733504056,-207.97,0.00031644,2]
[315026716,1708733504066,-901.85394119,0.00048,10]
[315026717,1708733504086,-500.0,0.00022656,2]
[315026718,1708733504096,-250.23006057,0.00048,10]
[315026719,1708733504109,-741.27723955,0.00048,10]
[315026720,1708733504122,-420.8888349,0.00048,10]
[315026721,1708733504134,-313.89851893,0.00048,10]
[315026722,1708733504146,-453.99860531,0.00048,10]
[315026723,1708733504158,-8823.96159238,0.00048,10]
[315026724,1708733504171,-4679.7194,0.00048,10]
[315026725,1708733504768,-500.0,0.00023204,2]
[315026726,1708733504778,-500.0,0.00027397,2]
[315026727,1708733504787,-500.0,0.00027397,2]
[315026728,1708733504796,-500.0,0.00027397,2]
[315026729,1708733504805,-500.0,0.00027534,2]
[315026730,1708733504814,-439.93699998,0.00028219,2]
[315026731,1708733504826,-262.73300002,0.00028219,2]
[315026732,1708733504834,-702.67,0.00028356,2]
[315026733,1708733504848,-99.39699998,0.00028493,2]
[315026734,1708733504870,-508.60850008,0.00023752,2]
[315026735,1708733504879,-188.72339995,0.00028493,2]
[315026736,1708733505005,-500.0,0.00027397,2]
[315026737,1708733505015,-211.87960007,0.00028493,2]
[315026738,1708733505025,-702.67,0.00028493,2]
[315026739,1708733505034,-500.0,0.0002863,2]
[315026740,1708733505043,-702.67,0.0002863,2]
[315026741,1708733505052,-500.0,0.00028767,2]
[315026742,1708733505062,-702.67,0.00028767,2]
[315026743,1708733505071,-500.0,0.00028904,2]
[315026744,1708733505081,-702.67,0.00028904,2]
[315026745,1708733505090,-500.0,0.00029041,2]
[315026746,1708733505100,-76.20462493,0.00029041,2]
[315026747,1708733505114,-423.79537507,0.00029041,2]
[315026748,1708733505123,-610.17939472,0.00029041,2]
[315026749,1708733505135,-92.49060528,0.00029041,2]
[315026750,1708733505145,-500.0,0.00029178,2]
[315026751,1708733505154,-500.0,0.00029178,2]
[315026752,1708733505165,-702.67,0.00029178,2]
[315026753,1708733505174,-500.0,0.00029315,2]
[315026754,1708733505183,-500.0,0.00029315,2]
[315026755,1708733505193,-702.67,0.00029315,2]
[315026756,1708733505202,-500.0,0.00029452,2]
[315026757,1708733505212,-17.61286399,0.00029452,2]
[315026758,1708733505226,-482.38713601,0.00029452,2]
[315026759,1708733505237,-702.67,0.00029452,2]
[315026760,1708733505249,-500.0,0.00029589,2]